[Event "Titled Tuesday Blitz November 14 Early 2023"]
[White "Fernandez Hernandez, Gerardo"]
[Black "Vargas, Mauricio"]
[WhiteFideId "2207400"]
[BlackFideId "4404572"]
[WhiteElo "2108"]
[BlackElo "1855"]
[Result "1-0"]
[Round "9"]
[TimeControl "180+1"]
[Date "2023.11.14"]
[WhiteClock "0:02:30"]
[BlackClock "0:00:00"]
[Board "153"]

1. e4 {[%clk 0:03:00]}  d5 {[%clk 0:02:59]} 2. exd5 {[%clk 0:03:00]}  Qxd5 {[%clk 0:02:59]} 3. Nc3 {[%clk 0:03:01]}  Qa5 {[%clk 0:02:59]} 4. g3 {[%clk 0:03:00]}  c6 {[%clk 0:02:59]} 5. Bg2 {[%clk 0:03:01]}  Nf6 {[%clk 0:02:59]} 6. Nge2 {[%clk 0:02:59]}  Bg4 {[%clk 0:02:59]} 7. h3 {[%clk 0:02:58]}  Bf5 {[%clk 0:02:58]} 8. O-O {[%clk 0:02:54]}  e6 {[%clk 0:02:58]} 9. d3 {[%clk 0:02:47]}  Bd6 {[%clk 0:02:58]} 10. Bf4 {[%clk 0:02:42]}  e5 {[%clk 0:02:55]} 11. Bd2 {[%clk 0:02:40]}  Qc7 {[%clk 0:02:55]} 12. Ne4 {[%clk 0:02:38]}  Be7 {[%clk 0:02:52]} 13. N2c3 {[%clk 0:02:33]}  Nbd7 {[%clk 0:00:00]} 14. Qe2 {[%clk 0:02:30]} 1-0


[Site "https://www.chess.com"]

[Event "Titled Tuesday Blitz November 14 Early 2023"]
[White "Villafane Gomez, Jaime"]
[Black "Bazzano, Sebastian"]
[WhiteFideId "4426517"]
[BlackFideId "104566"]
[WhiteElo "1738"]
[BlackElo "2321"]
[Result "0-1"]
[Round "9"]
[TimeControl "180+1"]
[Date "2023.11.14"]
[WhiteClock "0:00:00"]
[BlackClock "0:00:50"]
[Board "155"]

1. e4 {[%clk 0:02:59]}  e6 {[%clk 0:02:59]} 2. d4 {[%clk 0:02:55]}  d5 {[%clk 0:02:59]} 3. Nc3 {[%clk 0:02:54]}  dxe4 {[%clk 0:02:59]} 4. Nxe4 {[%clk 0:02:54]}  Bd7 {[%clk 0:02:59]} 5. Bd3 {[%clk 0:02:53]}  Bc6 {[%clk 0:02:59]} 6. Nf3 {[%clk 0:02:54]}  Bxe4 {[%clk 0:02:59]} 7. Bxe4 {[%clk 0:02:52]}  c6 {[%clk 0:03:00]} 8. O-O {[%clk 0:02:50]}  Nf6 {[%clk 0:03:00]} 9. Bd3 {[%clk 0:02:49]}  Bd6 {[%clk 0:03:00]} 10. Re1 {[%clk 0:02:45]}  Nbd7 {[%clk 0:02:59]} 11. c3 {[%clk 0:02:43]}  O-O {[%clk 0:02:58]} 12. Qc2 {[%clk 0:02:41]}  Qc7 {[%clk 0:02:58]} 13. Bg5 {[%clk 0:02:23]}  Rfe8 {[%clk 0:02:56]} 14. Bxf6 {[%clk 0:02:11]}  Nxf6 {[%clk 0:02:56]} 15. Ne5 {[%clk 0:01:58]}  g6 {[%clk 0:02:51]} 16. h3 {[%clk 0:01:45]}  c5 {[%clk 0:02:41]} 17. Qd2 {[%clk 0:01:37]}  cxd4 {[%clk 0:02:29]} 18. cxd4 {[%clk 0:01:36]}  Bf8 {[%clk 0:02:21]} 19. Rac1 {[%clk 0:01:34]}  Qb6 {[%clk 0:02:14]} 20. Bb1 {[%clk 0:01:28]}  Bg7 {[%clk 0:01:49]} 21. Re2 {[%clk 0:01:00]}  Rad8 {[%clk 0:01:46]} 22. Rd1 {[%clk 0:00:51]}  Nd7 {[%clk 0:01:32]} 23. Nxd7 {[%clk 0:00:43]}  Rxd7 {[%clk 0:01:33]} 24. d5 {[%clk 0:00:36]}  Rxd5 {[%clk 0:01:24]} 25. Qxd5 {[%clk 0:00:35]}  exd5 {[%clk 0:01:24]} 26. Rxe8+ {[%clk 0:00:34]}  Bf8 {[%clk 0:01:24]} 27. Rxd5 {[%clk 0:00:29]}  Kg7 {[%clk 0:01:24]} 28. b3 {[%clk 0:00:23]}  Qc6 {[%clk 0:01:17]} 29. Rdd8 {[%clk 0:00:18]}  Bd6 {[%clk 0:01:04]} 30. Bd3 {[%clk 0:00:14]}  Bc7 {[%clk 0:01:00]} 31. Rg8+ {[%clk 0:00:09]}  Kh6 {[%clk 0:00:59]} 32. Rde8 {[%clk 0:00:05]}  Qd6 {[%clk 0:00:54]} 33. Be4 {[%clk 0:00:00]}  f5 {[%clk 0:00:50]} 0-1


[Site "https://www.chess.com"]

[Event "Titled Tuesday Blitz November 14 Early 2023"]
[White "Lazavik, Denis"]
[Black "Nakamura, Hikaru"]
[WhiteFideId "13515110"]
[BlackFideId "2016192"]
[WhiteElo "3075"]
[BlackElo "3335"]
[Result "1/2-1/2"]
[Round "10"]
[TimeControl "180+1"]
[Date "2023.11.14"]
[WhiteClock "0:00:08"]
[BlackClock "0:00:03"]
[Board "1"]

1. d4 {[%clk 0:03:00]}  Nf6 {[%clk 0:02:59]} 2. c4 {[%clk 0:03:00]}  e6 {[%clk 0:03:00]} 3. Nf3 {[%clk 0:03:01]}  b6 {[%clk 0:03:00]} 4. g3 {[%clk 0:03:01]}  Bb7 {[%clk 0:03:00]} 5. Bg2 {[%clk 0:03:01]}  Bb4+ {[%clk 0:03:00]} 6. Bd2 {[%clk 0:03:01]}  Bxd2+ {[%clk 0:03:01]} 7. Qxd2 {[%clk 0:03:02]}  O-O {[%clk 0:03:00]} 8. O-O {[%clk 0:03:03]}  d6 {[%clk 0:03:00]} 9. Qf4 {[%clk 0:03:03]}  Ne4 {[%clk 0:02:59]} 10. Nfd2 {[%clk 0:02:35]}  e5 {[%clk 0:02:47]} 11. dxe5 {[%clk 0:02:06]}  dxe5 {[%clk 0:02:48]} 12. Qe3 {[%clk 0:02:06]}  Nxd2 {[%clk 0:02:41]} 13. Qxd2 {[%clk 0:01:57]}  Bxg2 {[%clk 0:02:24]} 14. Kxg2 {[%clk 0:01:44]}  Nd7 {[%clk 0:02:14]} 15. Nc3 {[%clk 0:01:43]}  Qc8 {[%clk 0:02:10]} 16. Rfd1 {[%clk 0:01:36]}  Nc5 {[%clk 0:02:03]} 17. Nd5 {[%clk 0:01:33]}  Re8 {[%clk 0:02:02]} 18. b4 {[%clk 0:01:33]}  Ne6 {[%clk 0:02:02]} 19. Qd3 {[%clk 0:01:22]}  c6 {[%clk 0:01:52]} 20. Nc3 {[%clk 0:01:21]}  Qc7 {[%clk 0:01:45]} 21. Qd6 {[%clk 0:01:16]}  Rac8 {[%clk 0:01:45]} 22. Qxc7 {[%clk 0:01:13]}  Rxc7 {[%clk 0:01:46]} 23. a4 {[%clk 0:01:14]}  Rb8 {[%clk 0:01:31]} 24. Rab1 {[%clk 0:01:00]}  Kf8 {[%clk 0:01:29]} 25. e3 {[%clk 0:01:00]}  f6 {[%clk 0:01:29]} 26. Kf3 {[%clk 0:01:00]}  Ke7 {[%clk 0:01:27]} 27. h4 {[%clk 0:01:00]}  h5 {[%clk 0:01:26]} 28. Ke2 {[%clk 0:00:54]}  Ra8 {[%clk 0:01:20]} 29. Ne4 {[%clk 0:00:48]}  Nd8 {[%clk 0:01:07]} 30. c5 {[%clk 0:00:44]}  Ne6 {[%clk 0:01:05]} 31. Rbc1 {[%clk 0:00:43]}  Rb8 {[%clk 0:00:59]} 32. cxb6 {[%clk 0:00:39]}  axb6 {[%clk 0:00:59]} 33. Rc4 {[%clk 0:00:36]}  Ra8 {[%clk 0:00:55]} 34. Nc3 {[%clk 0:00:30]}  Rcc8 {[%clk 0:00:50]} 35. b5 {[%clk 0:00:22]}  cxb5 {[%clk 0:00:44]} 36. Rxc8 {[%clk 0:00:21]}  Rxc8 {[%clk 0:00:45]} 37. Nd5+ {[%clk 0:00:21]}  Kf7 {[%clk 0:00:42]} 38. axb5 {[%clk 0:00:22]}  Rc5 {[%clk 0:00:37]} 39. Nxb6 {[%clk 0:00:22]}  Rxb5 {[%clk 0:00:38]} 40. Nc4 {[%clk 0:00:22]}  Rb4 {[%clk 0:00:38]} 41. Nd6+ {[%clk 0:00:21]}  Kg6 {[%clk 0:00:38]} 42. Rc1 {[%clk 0:00:21]}  Rb6 {[%clk 0:00:36]} 43. Nc8 {[%clk 0:00:20]}  Rb2+ {[%clk 0:00:31]} 44. Kf3 {[%clk 0:00:21]}  Rb7 {[%clk 0:00:26]} 45. Nd6 {[%clk 0:00:20]}  Rd7 {[%clk 0:00:26]} 46. Ne4 {[%clk 0:00:21]}  Nd8 {[%clk 0:00:25]} 47. Nc5 {[%clk 0:00:19]}  Ra7 {[%clk 0:00:25]} 48. Rd1 {[%clk 0:00:19]}  Nf7 {[%clk 0:00:25]} 49. Rd7 {[%clk 0:00:17]}  Ra8 {[%clk 0:00:26]} 50. Kg2 {[%clk 0:00:13]}  Re8 {[%clk 0:00:24]} 51. Rc7 {[%clk 0:00:12]}  Nh6 {[%clk 0:00:24]} 52. e4 {[%clk 0:00:12]}  Ng4 {[%clk 0:00:23]} 53. f3 {[%clk 0:00:12]}  Nh6 {[%clk 0:00:21]} 54. Rd7 {[%clk 0:00:11]}  Nf7 {[%clk 0:00:20]} 55. Kf2 {[%clk 0:00:11]}  Nh6 {[%clk 0:00:18]} 56. Kg2 {[%clk 0:00:12]}  Kh7 {[%clk 0:00:17]} 57. Kf2 {[%clk 0:00:12]}  Ng8 {[%clk 0:00:18]} 58. Ke3 {[%clk 0:00:11]}  Kg6 {[%clk 0:00:18]} 59. Kf2 {[%clk 0:00:11]}  Nh6 {[%clk 0:00:14]} 60. Ke3 {[%clk 0:00:10]}  f5 {[%clk 0:00:15]} 61. Rd6+ {[%clk 0:00:10]}  Kf7 {[%clk 0:00:15]} 62. Ra6 {[%clk 0:00:08]}  Re7 {[%clk 0:00:13]} 63. Nd3 {[%clk 0:00:08]}  g6 {[%clk 0:00:12]} 64. Ra5 {[%clk 0:00:08]}  Kf6 {[%clk 0:00:13]} 65. Ra6+ {[%clk 0:00:08]}  Kg7 {[%clk 0:00:14]} 66. Ra5 {[%clk 0:00:07]}  Nf7 {[%clk 0:00:14]} 67. Rb5 {[%clk 0:00:06]}  Nd6 {[%clk 0:00:13]} 68. Rc5 {[%clk 0:00:07]}  Nf7 {[%clk 0:00:13]} 69. Rd5 {[%clk 0:00:07]}  Kf6 {[%clk 0:00:13]} 70. Nc5 {[%clk 0:00:07]}  Ra7 {[%clk 0:00:12]} 71. Nd7+ {[%clk 0:00:08]}  Ke6 {[%clk 0:00:13]} 72. Nc5+ {[%clk 0:00:08]}  Ke7 {[%clk 0:00:14]} 73. Nd3 {[%clk 0:00:09]}  Ra3 {[%clk 0:00:14]} 74. Ke2 {[%clk 0:00:09]}  Kf6 {[%clk 0:00:13]} 75. Nc5 {[%clk 0:00:08]}  Ra2+ {[%clk 0:00:13]} 76. Ke3 {[%clk 0:00:08]}  Rg2 {[%clk 0:00:13]} 77. Nd7+ {[%clk 0:00:07]}  Ke6 {[%clk 0:00:14]} 78. Nc5+ {[%clk 0:00:08]}  Ke7 {[%clk 0:00:14]} 79. Rd7+ {[%clk 0:00:08]}  Kf6 {[%clk 0:00:14]} 80. Ra7 {[%clk 0:00:06]}  Rxg3 {[%clk 0:00:02]} 81. Nd7+ {[%clk 0:00:07]}  Ke6 {[%clk 0:00:03]} 82. Nf8+ {[%clk 0:00:07]}  Kf6 {[%clk 0:00:03]} 83. Nd7+ {[%clk 0:00:07]}  Ke6 {[%clk 0:00:03]} 84. Nf8+ {[%clk 0:00:07]}  Kf6 {[%clk 0:00:03]} 85. Nd7+ {[%clk 0:00:08]} 1/2-1/2


[Site "https://www.chess.com"]

[Event "Titled Tuesday Blitz November 14 Early 2023"]
[White "Niemann, Hans Moke"]
[Black "Galchenko, Matvey"]
[WhiteFideId "2093596"]
[BlackFideId "24175480"]
[WhiteElo "3045"]
[BlackElo "2959"]
[Result "1-0"]
[Round "10"]
[TimeControl "180+1"]
[Date "2023.11.14"]
[WhiteClock "0:00:33"]
[BlackClock "0:00:01"]
[Board "3"]

1. e4 {[%clk 0:02:58]}  e6 {[%clk 0:02:59]} 2. d4 {[%clk 0:02:58]}  d5 {[%clk 0:03:00]} 3. Nc3 {[%clk 0:02:59]}  Bb4 {[%clk 0:03:00]} 4. exd5 {[%clk 0:02:57]}  exd5 {[%clk 0:03:01]} 5. Bd3 {[%clk 0:02:57]}  Nc6 {[%clk 0:03:01]} 6. a3 {[%clk 0:02:57]}  Ba5 {[%clk 0:03:00]} 7. Ne2 {[%clk 0:02:52]}  Nge7 {[%clk 0:02:59]} 8. O-O {[%clk 0:02:49]}  O-O {[%clk 0:02:59]} 9. Bg5 {[%clk 0:02:46]}  f6 {[%clk 0:02:57]} 10. Be3 {[%clk 0:02:39]}  Bf5 {[%clk 0:02:57]} 11. b4 {[%clk 0:02:38]}  Bb6 {[%clk 0:02:55]} 12. Nf4 {[%clk 0:02:36]}  Qd7 {[%clk 0:02:42]} 13. Bxf5 {[%clk 0:02:24]}  Qxf5 {[%clk 0:02:32]} 14. Nce2 {[%clk 0:02:23]}  Ng6 {[%clk 0:02:12]} 15. Ng3 {[%clk 0:02:17]}  Qd7 {[%clk 0:02:13]} 16. c3 {[%clk 0:02:15]}  Nce7 {[%clk 0:02:09]} 17. Re1 {[%clk 0:02:11]}  Nxf4 {[%clk 0:02:07]} 18. Bxf4 {[%clk 0:02:12]}  Ng6 {[%clk 0:02:08]} 19. Bd2 {[%clk 0:01:57]}  c6 {[%clk 0:02:07]} 20. Qf3 {[%clk 0:01:52]}  Rfe8 {[%clk 0:02:07]} 21. Nf5 {[%clk 0:01:51]}  Bc7 {[%clk 0:02:07]} 22. h4 {[%clk 0:01:43]}  Rxe1+ {[%clk 0:01:50]} 23. Rxe1 {[%clk 0:01:43]}  Re8 {[%clk 0:01:50]} 24. Qg4 {[%clk 0:01:28]}  Rxe1+ {[%clk 0:01:13]} 25. Bxe1 {[%clk 0:01:29]}  Kf8 {[%clk 0:01:14]} 26. g3 {[%clk 0:01:26]}  Qf7 {[%clk 0:01:03]} 27. Ne3 {[%clk 0:01:18]}  Qe8 {[%clk 0:00:49]} 28. h5 {[%clk 0:01:15]}  Ne7 {[%clk 0:00:49]} 29. h6 {[%clk 0:01:16]}  g6 {[%clk 0:00:38]} 30. Bd2 {[%clk 0:01:15]}  Qc8 {[%clk 0:00:37]} 31. Qf3 {[%clk 0:01:05]}  Qe6 {[%clk 0:00:37]} 32. a4 {[%clk 0:01:04]}  Kf7 {[%clk 0:00:35]} 33. a5 {[%clk 0:01:03]}  Qe4 {[%clk 0:00:34]} 34. Qxe4 {[%clk 0:01:02]}  dxe4 {[%clk 0:00:35]} 35. c4 {[%clk 0:01:03]}  g5 {[%clk 0:00:33]} 36. b5 {[%clk 0:00:58]}  Kg6 {[%clk 0:00:27]} 37. Bb4 {[%clk 0:00:58]}  Nf5 {[%clk 0:00:25]} 38. a6 {[%clk 0:00:49]}  Nxd4 {[%clk 0:00:21]} 39. axb7 {[%clk 0:00:47]}  cxb5 {[%clk 0:00:21]} 40. Bc5 {[%clk 0:00:45]}  Nf3+ {[%clk 0:00:09]} 41. Kg2 {[%clk 0:00:41]}  Bb8 {[%clk 0:00:09]} 42. cxb5 {[%clk 0:00:38]}  Ne5 {[%clk 0:00:09]} 43. Nd5 {[%clk 0:00:37]}  Nd7 {[%clk 0:00:08]} 44. Bd4 {[%clk 0:00:33]}  Kf7 {[%clk 0:00:05]} 45. Nb4 {[%clk 0:00:33]}  Bd6 {[%clk 0:00:01]} 46. Nc6 {[%clk 0:00:32]}  Ke6 {[%clk 0:00:02]} 47. Bxa7 {[%clk 0:00:33]}  f5 {[%clk 0:00:02]} 48. b8=Q {[%clk 0:00:32]}  Bxb8 {[%clk 0:00:02]} 49. Bxb8 {[%clk 0:00:33]}  Nf6 {[%clk 0:00:01]} 50. Nd4+ {[%clk 0:00:33]} 1-0


[Site "https://www.chess.com"]

[Event "Titled Tuesday Blitz November 14 Early 2023"]
[White "Sychev, Klementy"]
[Black "Daneshvar, Bardiya"]
[WhiteFideId "4114060"]
[BlackFideId "12576468"]
[WhiteElo "2940"]
[BlackElo "2999"]
[Result "0-1"]
[Round "10"]
[TimeControl "180+1"]
[Date "2023.11.14"]
[WhiteClock "0:00:00"]
[BlackClock "0:00:17"]
[Board "4"]

1. e4 {[%clk 0:03:00]}  c6 {[%clk 0:02:59]} 2. c4 {[%clk 0:03:00]}  d5 {[%clk 0:03:00]} 3. cxd5 {[%clk 0:03:01]}  cxd5 {[%clk 0:03:01]} 4. exd5 {[%clk 0:03:02]}  Nf6 {[%clk 0:03:02]} 5. Qa4+ {[%clk 0:03:02]}  Nbd7 {[%clk 0:03:01]} 6. Nc3 {[%clk 0:03:03]}  g6 {[%clk 0:03:02]} 7. Bc4 {[%clk 0:03:03]}  Bg7 {[%clk 0:03:02]} 8. Nf3 {[%clk 0:03:04]}  O-O {[%clk 0:03:01]} 9. d3 {[%clk 0:03:04]}  a6 {[%clk 0:02:52]} 10. Qa3 {[%clk 0:03:05]}  b6 {[%clk 0:02:53]} 11. O-O {[%clk 0:03:04]}  Bb7 {[%clk 0:02:53]} 12. Re1 {[%clk 0:03:05]}  Re8 {[%clk 0:02:49]} 13. Be3 {[%clk 0:03:05]}  b5 {[%clk 0:02:39]} 14. Bb3 {[%clk 0:03:05]}  Bf8 {[%clk 0:02:40]} 15. Qb4 {[%clk 0:03:02]}  e6 {[%clk 0:02:38]} 16. Qh4 {[%clk 0:02:22]}  Bxd5 {[%clk 0:02:11]} 17. Nxd5 {[%clk 0:01:51]}  Nxd5 {[%clk 0:02:12]} 18. Bg5 {[%clk 0:01:50]}  Qb6 {[%clk 0:02:06]} 19. Re2 {[%clk 0:01:33]}  Ne7 {[%clk 0:01:52]} 20. Be3 {[%clk 0:01:29]}  Qb7 {[%clk 0:01:09]} 21. Ng5 {[%clk 0:01:16]}  h6 {[%clk 0:01:06]} 22. Ne4 {[%clk 0:00:40]}  Nf5 {[%clk 0:01:05]} 23. Qh3 {[%clk 0:00:39]}  Bg7 {[%clk 0:00:55]} 24. g4 {[%clk 0:00:31]}  Nxe3 {[%clk 0:00:51]} 25. Nd6 {[%clk 0:00:28]}  Qg2+ {[%clk 0:00:27]} 26. Qxg2 {[%clk 0:00:27]}  Nxg2 {[%clk 0:00:28]} 27. Kxg2 {[%clk 0:00:15]}  Red8 {[%clk 0:00:24]} 28. Nb7 {[%clk 0:00:10]}  Rdb8 {[%clk 0:00:23]} 29. Nd6 {[%clk 0:00:10]}  Nc5 {[%clk 0:00:20]} 30. Bc2 {[%clk 0:00:07]}  Rd8 {[%clk 0:00:18]} 31. Rb1 {[%clk 0:00:02]}  Rxd6 {[%clk 0:00:17]} 32. b4 {[%clk 0:00:00]}  Na4 {[%clk 0:00:17]} 0-1


[Site "https://www.chess.com"]

[Event "Titled Tuesday Blitz November 14 Early 2023"]
[White "Nihal Sarin"]
[Black "Bharath Subramaniyam H"]
[WhiteFideId "25092340"]
[BlackFideId "46634827"]
[WhiteElo "3110"]
[BlackElo "2937"]
[Result "0-1"]
[Round "10"]
[TimeControl "180+1"]
[Date "2023.11.14"]
[WhiteClock "0:00:43"]
[BlackClock "0:01:19"]
[Board "5"]

1. d4 {[%clk 0:02:58]}  Nf6 {[%clk 0:03:00]} 2. Nf3 {[%clk 0:02:58]}  e6 {[%clk 0:03:00]} 3. Bg5 {[%clk 0:02:59]}  d5 {[%clk 0:02:59]} 4. e3 {[%clk 0:02:59]}  Be7 {[%clk 0:02:59]} 5. Nbd2 {[%clk 0:02:59]}  c5 {[%clk 0:02:59]} 6. c3 {[%clk 0:02:59]}  O-O {[%clk 0:02:59]} 7. Bd3 {[%clk 0:02:59]}  Nbd7 {[%clk 0:02:57]} 8. O-O {[%clk 0:02:59]}  h6 {[%clk 0:02:58]} 9. Bh4 {[%clk 0:02:59]}  b6 {[%clk 0:02:57]} 10. Qb1 {[%clk 0:02:59]}  Bb7 {[%clk 0:02:56]} 11. b4 {[%clk 0:03:00]}  cxb4 {[%clk 0:02:39]} 12. cxb4 {[%clk 0:03:01]}  Ne8 {[%clk 0:02:40]} 13. Bxe7 {[%clk 0:02:59]}  Qxe7 {[%clk 0:02:41]} 14. a4 {[%clk 0:03:00]}  Nd6 {[%clk 0:02:37]} 15. b5 {[%clk 0:03:01]}  Rfc8 {[%clk 0:02:28]} 16. Qb4 {[%clk 0:03:00]}  a5 {[%clk 0:02:16]} 17. Qb3 {[%clk 0:02:59]}  Rc7 {[%clk 0:02:13]} 18. Rfc1 {[%clk 0:02:56]}  Rac8 {[%clk 0:02:14]} 19. Rxc7 {[%clk 0:02:56]}  Rxc7 {[%clk 0:02:15]} 20. h3 {[%clk 0:02:57]}  Kf8 {[%clk 0:02:14]} 21. Qb2 {[%clk 0:02:57]}  Ke8 {[%clk 0:02:06]} 22. Re1 {[%clk 0:02:56]}  Kd8 {[%clk 0:02:05]} 23. e4 {[%clk 0:02:52]}  dxe4 {[%clk 0:02:05]} 24. Nxe4 {[%clk 0:02:52]}  Nxe4 {[%clk 0:02:03]} 25. Bxe4 {[%clk 0:02:53]}  Bxe4 {[%clk 0:02:03]} 26. Rxe4 {[%clk 0:02:54]}  Qb4 {[%clk 0:01:56]} 27. Qa1 {[%clk 0:02:47]}  Rc3 {[%clk 0:01:47]} 28. Rg4 {[%clk 0:02:24]}  Qa3 {[%clk 0:01:38]} 29. Qxa3 {[%clk 0:02:17]}  Rxa3 {[%clk 0:01:39]} 30. Rxg7 {[%clk 0:02:17]}  Ke7 {[%clk 0:01:39]} 31. d5 {[%clk 0:01:52]}  exd5 {[%clk 0:01:35]} 32. Rg4 {[%clk 0:01:51]}  Nc5 {[%clk 0:01:33]} 33. Rh4 {[%clk 0:01:51]}  Rxa4 {[%clk 0:01:30]} 34. Rxh6 {[%clk 0:01:51]}  Ne6 {[%clk 0:01:30]} 35. Ne5 {[%clk 0:01:50]}  Re4 {[%clk 0:01:25]} 36. Nc6+ {[%clk 0:01:49]}  Kd6 {[%clk 0:01:26]} 37. Rh7 {[%clk 0:01:47]}  d4 {[%clk 0:01:19]} 38. Rxf7 {[%clk 0:01:27]}  d3 {[%clk 0:01:19]} 39. Rf3 {[%clk 0:00:43]}  Nf4 {[%clk 0:01:19]} 0-1


[Site "https://www.chess.com"]

[Event "Titled Tuesday Blitz November 14 Early 2023"]
[White "Sadhwani, Raunak"]
[Black "Chigaev, Maksim"]
[WhiteFideId "35093487"]
[BlackFideId "4108116"]
[WhiteElo "3048"]
[BlackElo "2921"]
[Result "1-0"]
[Round "10"]
[TimeControl "180+1"]
[Date "2023.11.14"]
[WhiteClock "0:00:09"]
[BlackClock "0:00:00"]
[Board "6"]

1. Nf3 {[%clk 0:03:00]}  Nf6 {[%clk 0:02:59]} 2. d4 {[%clk 0:03:00]}  g6 {[%clk 0:02:59]} 3. c4 {[%clk 0:03:00]}  Bg7 {[%clk 0:03:00]} 4. Nc3 {[%clk 0:03:01]}  O-O {[%clk 0:03:00]} 5. e4 {[%clk 0:03:01]}  d6 {[%clk 0:03:01]} 6. Be2 {[%clk 0:03:02]}  e5 {[%clk 0:03:01]} 7. O-O {[%clk 0:03:00]}  exd4 {[%clk 0:03:00]} 8. Nxd4 {[%clk 0:03:01]}  Re8 {[%clk 0:03:01]} 9. f3 {[%clk 0:03:01]}  c6 {[%clk 0:03:02]} 10. Nc2 {[%clk 0:03:01]}  Na6 {[%clk 0:03:01]} 11. Kh1 {[%clk 0:03:00]}  h6 {[%clk 0:03:00]} 12. Be3 {[%clk 0:02:55]}  d5 {[%clk 0:02:46]} 13. cxd5 {[%clk 0:02:55]}  cxd5 {[%clk 0:02:47]} 14. exd5 {[%clk 0:02:49]}  Nb4 {[%clk 0:02:40]} 15. Bd4 {[%clk 0:02:13]}  Nbxd5 {[%clk 0:02:21]} 16. Bb5 {[%clk 0:02:09]}  Bd7 {[%clk 0:02:10]} 17. Bc4 {[%clk 0:01:41]}  Be6 {[%clk 0:01:30]} 18. Bb3 {[%clk 0:01:41]}  Nxc3 {[%clk 0:01:25]} 19. bxc3 {[%clk 0:01:39]}  Qc7 {[%clk 0:01:21]} 20. Qd2 {[%clk 0:01:27]}  Rad8 {[%clk 0:01:17]} 21. Rfe1 {[%clk 0:01:28]}  Bxb3 {[%clk 0:01:00]} 22. axb3 {[%clk 0:01:23]}  a6 {[%clk 0:01:01]} 23. Rad1 {[%clk 0:01:15]}  h5 {[%clk 0:00:52]} 24. Qf2 {[%clk 0:01:06]}  Rxe1+ {[%clk 0:00:49]} 25. Rxe1 {[%clk 0:01:07]}  Nd5 {[%clk 0:00:48]} 26. c4 {[%clk 0:00:55]}  Bxd4 {[%clk 0:00:43]} 27. Qxd4 {[%clk 0:00:56]}  Nb4 {[%clk 0:00:27]} 28. Qc3 {[%clk 0:00:56]}  Nd3 {[%clk 0:00:26]} 29. Re2 {[%clk 0:00:45]}  Qc5 {[%clk 0:00:18]} 30. g3 {[%clk 0:00:32]}  Qf5 {[%clk 0:00:10]} 31. Ne1 {[%clk 0:00:22]}  Nxe1 {[%clk 0:00:08]} 32. Rxe1 {[%clk 0:00:23]}  Kh7 {[%clk 0:00:08]} 33. Re7 {[%clk 0:00:20]}  b5 {[%clk 0:00:07]} 34. Kg2 {[%clk 0:00:19]}  bxc4 {[%clk 0:00:02]} 35. bxc4 {[%clk 0:00:20]}  Kg8 {[%clk 0:00:02]} 36. Re5 {[%clk 0:00:12]}  Qd7 {[%clk 0:00:02]} 37. Re2 {[%clk 0:00:10]}  Qc7 {[%clk 0:00:01]} 38. c5 {[%clk 0:00:10]}  Rc8 {[%clk 0:00:02]} 39. Rc2 {[%clk 0:00:11]}  Rf8 {[%clk 0:00:02]} 40. c6 {[%clk 0:00:11]}  a5 {[%clk 0:00:03]} 41. Qc4 {[%clk 0:00:10]}  Ra8 {[%clk 0:00:04]} 42. Rd2 {[%clk 0:00:09]}  Rf8 {[%clk 0:00:04]} 43. Rd7 {[%clk 0:00:09]}  Qb6 {[%clk 0:00:03]} 44. c7 {[%clk 0:00:08]}  Qb2+ {[%clk 0:00:04]} 45. Kh3 {[%clk 0:00:08]}  Qb7 {[%clk 0:00:00]} 46. Rd8 {[%clk 0:00:09]} 1-0


[Site "https://www.chess.com"]

[Event "Titled Tuesday Blitz November 14 Early 2023"]
[White "Bortnyk, Olexandr"]
[Black "Gurel, Ediz"]
[WhiteFideId "14120828"]
[BlackFideId "44507356"]
[WhiteElo "3014"]
[BlackElo "2942"]
[Result "1-0"]
[Round "10"]
[TimeControl "180+1"]
[Date "2023.11.14"]
[WhiteClock "0:00:52"]
[BlackClock "0:00:02"]
[Board "9"]

1. e4 {[%clk 0:02:57]}  c5 {[%clk 0:02:58]} 2. c3 {[%clk 0:02:51]}  Nf6 {[%clk 0:02:58]} 3. e5 {[%clk 0:02:51]}  Nd5 {[%clk 0:02:58]} 4. d4 {[%clk 0:02:51]}  cxd4 {[%clk 0:02:59]} 5. Nf3 {[%clk 0:02:50]}  e6 {[%clk 0:03:00]} 6. cxd4 {[%clk 0:02:50]}  d6 {[%clk 0:03:00]} 7. Bc4 {[%clk 0:02:51]}  Nc6 {[%clk 0:03:00]} 8. O-O {[%clk 0:02:52]}  Nb6 {[%clk 0:03:01]} 9. Bd3 {[%clk 0:02:52]}  Nb4 {[%clk 0:03:00]} 10. Bb5+ {[%clk 0:02:47]}  Bd7 {[%clk 0:03:00]} 11. Bg5 {[%clk 0:02:45]}  Be7 {[%clk 0:02:57]} 12. Bxd7+ {[%clk 0:02:44]}  Qxd7 {[%clk 0:02:55]} 13. Bxe7 {[%clk 0:02:39]}  Qxe7 {[%clk 0:02:52]} 14. Nc3 {[%clk 0:02:40]}  O-O {[%clk 0:02:44]} 15. Qe2 {[%clk 0:02:37]}  Nc6 {[%clk 0:02:24]} 16. Ne4 {[%clk 0:02:37]}  dxe5 {[%clk 0:02:16]} 17. dxe5 {[%clk 0:02:38]}  Nd7 {[%clk 0:02:16]} 18. Nc3 {[%clk 0:02:30]}  Rfd8 {[%clk 0:02:05]} 19. Rfd1 {[%clk 0:02:25]}  a6 {[%clk 0:01:52]} 20. h3 {[%clk 0:02:16]}  Rac8 {[%clk 0:01:49]} 21. Qe3 {[%clk 0:02:16]}  h6 {[%clk 0:01:47]} 22. Rd2 {[%clk 0:02:14]}  Na5 {[%clk 0:01:29]} 23. b3 {[%clk 0:02:07]}  Qb4 {[%clk 0:01:16]} 24. Ne4 {[%clk 0:02:05]}  Nf8 {[%clk 0:01:10]} 25. Nd6 {[%clk 0:01:55]}  Rc3 {[%clk 0:01:10]} 26. Qe2 {[%clk 0:01:54]}  Nc6 {[%clk 0:01:09]} 27. Rad1 {[%clk 0:01:52]}  Ng6 {[%clk 0:01:06]} 28. Ne4 {[%clk 0:01:47]}  Rxd2 {[%clk 0:00:50]} 29. Qxd2 {[%clk 0:01:48]}  Rxf3 {[%clk 0:00:49]} 30. Qxb4 {[%clk 0:01:48]}  Nxb4 {[%clk 0:00:49]} 31. Rd8+ {[%clk 0:01:47]}  Kh7 {[%clk 0:00:49]} 32. gxf3 {[%clk 0:01:48]}  Nxe5 {[%clk 0:00:49]} 33. Kg2 {[%clk 0:01:41]}  Nxa2 {[%clk 0:00:43]} 34. Nd6 {[%clk 0:01:32]}  Kg6 {[%clk 0:00:43]} 35. Nxb7 {[%clk 0:01:32]}  Nb4 {[%clk 0:00:39]} 36. Nc5 {[%clk 0:01:29]}  Nec6 {[%clk 0:00:32]} 37. Rd6 {[%clk 0:01:28]}  a5 {[%clk 0:00:32]} 38. Nd3 {[%clk 0:01:27]}  Kf6 {[%clk 0:00:23]} 39. Nxb4 {[%clk 0:01:25]}  Nxb4 {[%clk 0:00:24]} 40. Rb6 {[%clk 0:01:26]}  Nc2 {[%clk 0:00:20]} 41. f4 {[%clk 0:01:21]}  Nd4 {[%clk 0:00:16]} 42. Rb7 {[%clk 0:01:21]}  g5 {[%clk 0:00:14]} 43. fxg5+ {[%clk 0:01:22]}  hxg5 {[%clk 0:00:15]} 44. Kf1 {[%clk 0:01:15]}  Ke5 {[%clk 0:00:09]} 45. Rxf7 {[%clk 0:01:13]}  Nxb3 {[%clk 0:00:10]} 46. Rg7 {[%clk 0:01:14]}  Kf6 {[%clk 0:00:08]} 47. Ra7 {[%clk 0:01:14]}  Ke5 {[%clk 0:00:07]} 48. Ke2 {[%clk 0:01:13]}  Nd4+ {[%clk 0:00:06]} 49. Ke3 {[%clk 0:01:11]}  Nc6 {[%clk 0:00:05]} 50. Ra8 {[%clk 0:01:10]}  Kf5 {[%clk 0:00:02]} 51. Ra6 {[%clk 0:01:08]}  Ne5 {[%clk 0:00:03]} 52. Rxa5 {[%clk 0:01:08]}  Kf6 {[%clk 0:00:04]} 53. Ke4 {[%clk 0:01:03]}  Ng6 {[%clk 0:00:02]} 54. Kf3 {[%clk 0:00:59]}  Ne5+ {[%clk 0:00:01]} 55. Kg3 {[%clk 0:01:00]}  Nf7 {[%clk 0:00:02]} 56. Kg4 {[%clk 0:00:58]}  Nh6+ {[%clk 0:00:02]} 57. Kh5 {[%clk 0:00:58]}  Nf5 {[%clk 0:00:03]} 58. Ra8 {[%clk 0:00:57]}  Ng7+ {[%clk 0:00:02]} 59. Kg4 {[%clk 0:00:57]}  Nf5 {[%clk 0:00:03]} 60. Rf8+ {[%clk 0:00:52]}  Kg7 {[%clk 0:00:02]} 61. Rxf5 {[%clk 0:00:51]}  exf5+ {[%clk 0:00:02]} 62. Kxg5 {[%clk 0:00:52]} 1-0


[Site "https://www.chess.com"]